bitfinex/quotes_ETHUSD_20250213
["timestamp","ask_amount","ask_price","bid_price","bid_amount"]
[1739460301316,0.02870688,2659.4,2658.4,0.1451]
[1739460301472,4.09466,2659.9,2659.1,3.76058]
[1739460301667,3.75985,2659.7,2659.1,4.53256]
[1739460301870,3.75933,2660.1,2659.1,0.772]
[1739460302180,0.015,2659.5,2659.1,0.772]
[1739460302386,0.015,2659.2,2658.6,4.53329]
[1739460302684,0.0075,2659.3,2658.6,0.772]
[1739460303034,0.0075,2659.3,2658.4,0.1451]
[1739460303035,3.76105,2658.9,2658.4,0.1451]
[1739460303234,0.015,2658.7,2658.0,3.76222]
[1739460303575,0.015,2658.7,2658.0,3.76211]
[1739460303915,0.015,2658.7,2657.5,3.76282]
[1739460303916,0.0075,2658.5,2657.5,3.76282]
[1739460304124,3.76202,2658.2,2657.6,3.76268]
[1739460304428,3.76243,2657.9,2657.1,3.76848]
[1739460304579,3.76335,2657.2,2657.1,0.005]
[1739460304926,4.217635,2657.2,2657.1,0.005]
[1739460305132,3.76261,2657.8,2657.1,0.005]
[1739460305363,3.76285,2657.6,2657.1,0.005]
[1739460305538,3.77835,2657.2,2657.1,0.005]
[1739460305824,0.341,2657.6,2657.1,0.005]
[1739460306024,4.5345,2657.9,2657.1,0.005]
[1739460306184,3.77802,2657.5,2657.1,0.005]
[1739460306386,3.77835,2657.2,2657.1,0.005]
[1739460306595,4.32835,2657.2,2657.1,0.005]
[1739460306802,5.10035,2657.2,2657.1,0.005]
[1739460307329,8.10035,2657.2,2657.1,0.005]
[1739460307497,9.69999569,2657.2,2657.1,0.005]
[1739460307698,9.69999569,2657.2,2655.7,0.6951]
[1739460307699,0.015,2656.6,2655.7,0.6951]
[1739460307914,3.76502,2656.1,2655.7,0.6951]
[1739460308245,3.76675,2654.9,2654.2,3.95564081]
[1739460308388,3.76767,2654.2,2653.5,3.76852]
[1739460308584,0.352,2654.5,2653.3,8.52348202]
[1739460308933,0.352,2654.5,2653.3,8.52357202]
[1739460309232,0.352,2654.5,2653.6,3.76846]
[1739460309233,0.04370688,2654.4,2653.6,3.76846]
[1739460309383,0.352,2654.5,2653.7,3.76831]
[1739460309583,0.767,2654.8,2653.8,0.03768149]
[1739460309830,4.53378,2654.8,2653.5,6.76848]
[1739460310004,0.352,2654.9,2654.5,3.76706]
[1739460310200,0.352,2654.9,2654.2,0.7957]
[1739460310410,0.352,2654.9,2654.3,3.76744]
[1739460310969,3.76572,2655.6,2654.3,3.76744]
[1739460310970,0.767,2655.6,2654.4,0.02780724]
[1739460311091,0.767,2655.6,2655.2,3.76619]
[1739460311316,0.767,2656.0,2655.3,3.76591]
[1739460311520,0.767,2656.0,2655.1,0.7933]
[1739460311521,1.119,2656.0,2655.1,0.7933]
[1739460311763,0.0075,2655.9,2655.4,3.7659]
[1739460311931,1.119,2656.5,2655.5,0.03765545]
[1739460312145,0.352,2656.5,2655.8,3.76533]
[1739460312366,4.11635,2656.5,2655.8,3.76533]
[1739460312673,0.0075,2656.2,2655.6,3.0]
[1739460312958,0.0075,2656.0,2655.4,3.76585]
[1739460313158,0.0075,2656.1,2655.1,0.7933]
[1739460313159,4.14562469,2656.2,2655.3,3.0]
[1739460313359,0.38084469,2656.2,2655.6,3.76552]
[1739460313561,0.0075,2656.1,2655.6,3.76552]
[1739460313760,0.0075,2656.1,2655.2,3.76615]
[1739460313761,3.76532,2655.9,2655.2,3.76615]
[1739460314065,0.38084469,2656.2,2655.4,3.76583]
[1739460314263,0.767,2656.5,2655.2,0.832589]
[1739460314425,0.767,2655.9,2653.6,4.97479531]
[1739460314623,0.767,2655.6,2653.4,0.85059857]
[1739460314963,0.015,2654.3,2653.6,3.76836]
[1739460315184,0.015,2654.1,2653.5,6.7685]
[1739460315352,0.015,2654.1,2653.4,0.8228]
[1739460315559,0.0075,2653.9,2653.3,3.76887]
[1739460315758,0.06210392,2653.9,2653.3,3.76887]
[1739460316085,0.359,2654.1,2653.1,0.1451]
[1739460316384,0.015,2653.9,2653.2,3.76893]
[1739460316544,0.0075,2653.7,2653.2,3.76894]
[1739460316885,0.0075,2653.7,2653.6,3.76846]
[1739460317178,0.767,2654.2,2653.1,3.91425]
[1739460317390,0.767,2654.7,2653.2,0.391425]
[1739460317683,0.767,2654.7,2654.4,3.76729]
[1739460317895,0.359,2655.1,2654.7,3.76687]
[1739460318043,4.12539,2655.1,2654.4,6.76732]
[1739460318248,0.015,2654.4,2653.2,0.391425]
[1739460318467,0.015,2654.4,2653.8,3.76808]
[1739460319039,0.015,2654.4,2653.2,3.76894]
[1739460319274,0.015,2654.4,2653.6,3.76846]
[1739460319459,0.565,2654.2,2653.6,3.76846]
[1739460319771,0.565,2654.2,2653.8,3.0]
[1739460320082,0.565,2654.3,2653.8,3.76813]
[1739460320282,0.524922,2654.3,2653.8,3.76808]
[1739460320446,0.015,2654.3,2653.9,3.76793]
[1739460320647,0.361,2654.7,2654.1,3.76775]
[1739460320852,0.40809374,2654.7,2654.1,3.7677]
[1739460321048,0.015,2654.6,2654.3,3.76736]
[1739460321289,0.015,2654.6,2654.1,7.53535]
[1739460321461,3.77458,2654.6,2653.5,3.76854]
[1739460321664,3.77458,2654.6,2654.1,3.0]
[1739460321889,0.0075,2654.4,2654.1,3.0]
[1739460322092,0.0075,2654.4,2654.1,3.76773]
[1739460322388,6.76571,2655.6,2654.4,3.76726]
[1739460322594,3.76632,2655.2,2654.6,3.76699]
[1739460322797,0.767,2655.3,2654.2,3.02781291]
[1739460322983,0.767,2655.3,2654.1,3.76775]
[1739460322984,0.04708199,2656.0,2654.4,3.0]
[1739460323183,0.767,2655.7,2654.6,3.0]
[1739460323368,0.0075,2655.6,2655.2,3.76611]
[1739460323569,3.76498,2656.1,2655.5,3.76575]
[1739460323770,4.53164,2656.3,2655.6,3.7656]
[1739460323771,0.376498,2656.0,2655.6,3.7656]
[1739460323973,3.76502,2656.1,2655.5,3.76575]
[1739460324157,4.33006,2656.0,2655.5,3.76575]
[1739460324524,4.33006,2656.0,2655.2,3.76619]
[1739460324525,0.0075,2656.0,2655.2,3.76619]
[1739460324652,3.76486,2656.2,2655.5,7.53136]
[1739460324857,0.0075,2656.0,2655.5,3.76566]
[1739460325095,0.0075,2656.0,2655.3,3.0]
[1739460325295,0.015,2656.0,2655.3,3.76598]
[1739460325471,0.0075,2656.0,2655.8,3.76522]
[1739460325995,0.0075,2656.2,2655.8,3.76522]
[1739460326499,3.76413,2656.7,2656.0,3.76496]
[1739460326651,0.015,2656.5,2656.1,3.76477]
[1739460326856,0.015,2656.5,2655.7,0.8229]
[1739460327101,0.015,2656.5,2656.2,3.76466]
[1739460327273,0.767,2656.9,2656.4,3.76449]
[1739460327455,4.5308,2656.9,2656.4,3.76449]
[1739460327656,0.015,2656.7,2656.2,3.76466]
[1739460327855,0.015,2656.7,2656.1,3.0]
[1739460328125,7.54327,2656.7,2656.1,3.0]
[1739460328296,0.015,2656.3,2655.6,3.7655]
[1739460328497,0.0075,2656.1,2655.7,3.0]
[1739460329217,0.0075,2656.0,2655.3,0.7863]
[1739460329521,0.0075,2655.9,2655.6,6.76558]
[1739460329729,0.0075,2655.9,2655.6,6.76554]
[1739460329921,0.0075,2656.0,2655.7,3.7654]
[1739460330171,0.015,2656.0,2655.7,3.7654]
[1739460330805,0.015,2656.0,2655.5,10.53138]
[1739460331029,3.76521,2655.9,2655.5,3.0]
[1739460331229,0.015,2655.7,2655.3,3.76597]
[1739460331444,0.015,2655.7,2655.5,3.76574]
[1739460331811,0.015,2655.7,2655.4,3.76588]
[1739460332018,4.33023,2655.9,2655.3,7.53186]
[1739460332251,0.015,2655.7,2655.5,3.76576]
[1739460332973,0.015,2655.8,2655.3,3.0]
[1739460333127,0.015,2655.8,2655.4,3.7659]
[1739460333314,0.015,2655.8,2655.3,3.0]
[1739460333672,0.015,2655.8,2655.6,3.76559]
[1739460334184,0.015,2655.8,2655.7,3.76548]
[1739460334742,0.015,2655.8,2655.6,7.53115]
[1739460334972,0.015,2655.8,2655.4,3.76582]
[1739460335170,3.76549,2655.7,2655.2,3.7661]
[1739460335338,0.0075,2655.4,2654.9,3.76661]
[1739460335554,0.015,2655.4,2655.2,3.76618]
[1739460335939,0.433049,2655.7,2655.1,3.0]
[1739460336241,0.015,2655.8,2655.4,3.76587]
[1739460336580,0.015,2655.9,2655.8,3.76534]
[1739460338315,0.015,2655.9,2655.7,7.53087]
[1739460338485,0.015,2655.9,2655.8,3.76534]
[1739460338648,0.015,2655.9,2655.3,3.76596]
[1739460338854,7.54559,2655.9,2655.3,3.76594]
[1739460339195,0.0075,2655.7,2655.4,3.76589]
[1739460339347,0.0075,2655.7,2655.4,3.76583]
[1739460339542,0.565,2655.9,2655.4,7.53166]
[1739460339743,0.0075,2655.8,2655.4,3.76583]
[1739460339981,0.0075,2655.5,2655.0,3.76643]
[1739460340288,0.0075,2655.4,2655.0,3.76643]
[1739460340489,0.0075,2655.3,2655.1,3.0]
[1739460340692,0.5575,2655.3,2654.9,3.76653]
[1739460341009,0.0075,2655.3,2654.7,3.76687]
[1739460341215,0.357,2655.5,2654.5,3.02779657]
[1739460341366,0.357,2655.5,2655.4,3.76591]
[1739460341571,0.357,2655.5,2654.7,3.7669]
[1739460341572,0.767,2656.2,2655.0,3.76645]
[1739460341765,4.88784,2656.2,2655.7,3.76538]
[1739460341973,0.0075,2655.9,2655.5,3.76566]
[1739460342170,0.0075,2655.9,2655.3,6.76595]
[1739460342171,0.5575,2655.7,2655.3,6.76595]
[1739460342395,3.76499,2656.1,2655.6,3.76561]
[1739460342611,3.78022,2655.9,2655.4,3.76587]
[1739460342970,0.015,2655.9,2655.6,3.76556]
[1739460343268,0.015,2655.9,2655.8,3.76534]
[1739460344673,0.0075,2655.9,2655.8,3.76534]
[1739460345671,0.356,2656.2,2656.0,3.76506]
[1739460345870,0.356,2656.2,2655.9,3.76508]
[1739460346104,0.356,2656.2,2656.1,3.76491]
[1739460346414,0.356,2656.2,2656.0,3.76498]
[1739460346771,0.015,2656.4,2656.3,3.76462]
[1739460347009,0.015,2656.6,2656.2,3.76476]
[1739460347205,0.559914,2656.6,2656.1,3.0]
[1739460347410,4.324184,2656.6,2656.1,3.0]
[1739460347769,4.324184,2656.6,2656.1,6.76489]
[1739460347987,0.559914,2656.6,2656.1,6.76489]
[1739460348190,0.559914,2656.6,2655.8,3.8023]
[1739460348414,0.015,2656.6,2656.3,3.76455]
[1739460348574,0.015,2656.6,2656.3,7.52907]
[1739460348936,0.015,2656.6,2656.4,3.76442]
[1739460349142,0.015,2656.6,2656.5,3.76435]
[1739460349642,1.103,2657.1,2656.6,3.76413]
[1739460349795,1.241046,2657.0,2656.6,3.76413]
[1739460350000,1.241046,2657.0,2656.7,3.76396]
[1739460350200,0.015,2657.0,2656.7,3.76396]
[1739460350539,0.015,2657.0,2656.7,3.76394]
[1739460350700,0.015,2657.0,2656.8,3.76392]
[1739460350900,0.565,2657.3,2656.7,3.76394]
[1739460351139,0.565,2657.3,2656.9,3.76376]
[1739460351308,5.099155,2657.3,2656.8,3.76392]
[1739460351524,5.099155,2657.3,2656.8,3.76385]
[1739460352043,1.335915,2657.3,2656.9,3.76377]
[1739460352355,1.335915,2657.3,2656.8,3.76385]
[1739460352521,0.0075,2657.1,2656.9,3.76378]
[1739460352731,0.0075,2657.1,2657.0,3.76364]
[1739460352931,0.767,2657.4,2657.1,3.76336]
[1739460353133,4.52413,2657.8,2656.7,3.76406]
[1739460353322,4.743073,2657.7,2657.2,3.76335]
[1739460353520,0.980413,2657.7,2657.3,3.76319]
[1739460354050,0.980413,2657.7,2657.2,3.76335]
[1739460354218,0.0075,2657.6,2657.4,3.76306]
[1739460354588,0.0075,2657.6,2657.5,3.76293]
[1739460355076,0.0075,2657.6,2657.0,0.7648]
[1739460355077,3.77001,2657.8,2657.3,3.76312]
[1739460355385,3.77001,2657.8,2657.2,3.0]
[1739460355386,0.015,2657.5,2657.2,3.0]
[1739460355586,0.015,2657.5,2657.2,6.76333]
[1739460356078,0.0075,2657.5,2657.2,3.0]
[1739460356223,4.148221,2657.5,2657.2,3.0]
[1739460356462,0.0075,2657.4,2657.2,3.0]
[1739460356981,0.0075,2657.4,2656.7,0.8096]
[1739460357198,0.0075,2657.3,2656.8,3.76391]
[1739460357366,0.0075,2657.2,2656.7,3.76396]
[1739460357569,3.77101,2657.1,2656.6,3.76408]
[1739460357768,0.0075,2657.1,2656.4,0.795]
[1739460357998,0.0075,2657.1,2657.0,3.76364]
[1739460358198,0.0075,2657.2,2656.9,3.76376]
[1739460358367,0.0075,2657.3,2656.9,3.76369]
[1739460358567,0.0075,2657.3,2657.0,3.76364]
[1739460358793,0.0075,2657.2,2657.1,3.7635]
[1739460358993,0.0075,2657.2,2657.0,3.76364]
[1739460358994,0.0075,2657.3,2657.0,3.76357]
[1739460359210,0.0075,2657.2,2656.8,3.76387]
[1739460360124,0.0075,2657.0,2656.7,3.0]
[1739460360343,3.76378,2656.9,2656.7,3.0]
[1739460360554,3.76378,2656.9,2655.9,9.73416]
[1739460360555,3.77931,2656.6,2655.9,5.969]
[1739460360833,0.015,2656.4,2656.0,3.76504]
[1739460361035,0.015,2656.4,2656.0,3.76496]
[1739460361236,0.015,2656.4,2656.1,3.7649]
[1739460361484,0.015,2656.4,2656.0,3.0]
[1739460361651,4.157425,2656.4,2656.0,3.0]
[1739460361856,4.157425,2656.4,2655.7,3.76547]
[1739460361857,0.015,2656.2,2655.7,3.76538]
[1739460362363,0.015,2656.0,2655.5,3.76566]
[1739460362562,3.82722734,2656.0,2655.5,3.76566]
[1739460362761,0.84945673,2656.0,2655.1,0.7787]
[1739460362919,0.0075,2655.8,2655.5,3.76571]
[1739460363091,0.0075,2655.8,2655.6,3.76561]
[1739460363497,0.0075,2656.0,2655.6,3.76552]
[1739460363738,0.0075,2656.0,2655.7,3.7654]
[1739460364111,0.343,2656.1,2656.0,3.76506]
[1739460364411,5.28,2656.6,2656.3,3.76456]
[1739460364714,0.0075,2656.5,2656.3,3.76456]
[1739460365098,0.0075,2656.5,2656.2,3.76468]
[1739460365401,0.565,2656.3,2655.7,3.76545]
[1739460365636,0.61206566,2656.3,2655.7,3.76539]
[1739460365857,0.61206566,2656.3,2655.9,3.76512]
[1739460366038,1.30468457,2656.3,2655.7,3.76539]
[1739460366242,1.35175021,2656.3,2655.6,3.0]
[1739460366590,0.0075,2656.1,2655.6,3.0]
[1739460366726,0.0075,2655.9,2655.6,3.0]
[1739460366904,0.0075,2655.9,2655.6,6.76554]
[1739460367106,0.0075,2655.9,2655.4,3.7659]
[1739460367468,0.0075,2655.8,2655.4,6.7659]
[1739460367602,0.0075,2655.7,2655.2,3.76612]
[1739460367807,0.015,2655.7,2655.3,3.76604]
[1739460368455,0.015,2655.7,2654.8,3.76673]
[1739460368456,0.0075,2655.5,2654.6,0.8237]
[1739460368662,0.565,2655.5,2655.0,7.53285]
[1739460368862,2.829,2655.5,2654.9,3.0]
[1739460369168,1.224474,2655.4,2654.8,3.76664]
[1739460369364,1.224474,2655.4,2655.0,3.76645]
[1739460369747,1.224474,2655.4,2654.8,7.53331]
[1739460369748,4.990394,2655.4,2654.8,7.53331]
[1739460369947,4.990394,2655.4,2654.8,3.76664]
[1739460370111,1.224474,2655.4,2654.9,3.76653]
[1739460370304,1.224474,2655.4,2655.0,3.76643]
[1739460370509,1.224474,2655.4,2654.8,3.76664]
[1739460370510,0.015,2655.4,2655.3,3.76605]
[1739460370760,0.757,2655.8,2655.2,3.0]
[1739460371067,0.757,2655.8,2655.5,3.76567]
[1739460371068,0.015,2655.7,2655.5,3.76567]
[1739460371247,0.015,2655.7,2655.6,3.76562]
[1739460371452,0.565,2656.0,2655.5,3.76567]
[1739460371722,3.76571,2655.6,2655.1,3.76626]
[1739460371850,0.565,2655.5,2654.9,3.76652]
[1739460372051,0.0075,2655.1,2654.7,3.76679]
[1739460372309,0.0075,2655.0,2654.7,3.76679]
[1739460372506,0.0075,2655.0,2654.5,3.7671]
[1739460372653,0.015,2655.2,2654.7,3.7669]
[1739460372853,1.036131,2655.2,2654.5,3.0]
[1739460373096,0.04708048,2655.4,2654.7,3.76682]
[1739460373305,0.565,2655.2,2654.6,3.76704]
[1739460373469,0.767,2655.1,2654.5,3.76709]
[1739460373675,3.76655,2655.0,2654.5,3.76718]
[1739460374017,0.565,2654.9,2654.5,3.76718]
[1739460374654,0.015,2654.9,2654.5,3.76709]
[1739460374994,4.51704,2655.5,2655.0,3.76642]
[1739460375162,0.7512,2655.5,2655.1,3.76633]
[1739460375346,0.7512,2655.5,2655.4,3.76591]
[1739460375551,0.343,2655.6,2655.2,3.76609]
[1739460375787,0.343,2655.6,2655.5,3.76576]
[1739460376162,0.343,2655.6,2655.4,3.76589]
[1739460376362,0.015,2655.5,2655.3,3.76604]
[1739460376567,0.015,2655.5,2655.0,3.0]
[1739460376788,1.35864842,2655.5,2655.0,3.0]
[1739460377001,3.76599,2655.4,2655.0,3.0]
[1739460377293,0.565,2655.3,2654.7,3.76681]
[1739460377496,0.565,2655.0,2654.3,3.76741]
[1739460377698,1.301236,2655.0,2654.3,3.76747]
[1739460377874,0.015,2655.0,2654.7,3.76679]
[1739460378070,0.015,2655.0,2654.9,3.76662]
[1739460378272,0.015,2655.0,2654.7,3.76679]
[1739460378601,0.015,2655.0,2654.5,3.76709]
[1739460378771,4.33149,2655.0,2654.5,3.76709]
[1739460378970,5.444359,2655.0,2654.5,3.76709]
[1739460379165,1.677869,2655.0,2654.5,3.76709]
[1739460379560,1.677869,2655.0,2654.2,3.7512]
[1739460379898,1.677869,2655.0,2654.7,3.76689]
[1739460380073,0.015,2655.0,2654.9,3.76662]
[1739460380656,0.015,2655.0,2654.8,3.76667]
[1739460381103,0.015,2655.0,2654.7,3.7668]
[1739460381268,0.767,2655.2,2654.9,3.76651]
[1739460381464,3.76572,2655.6,2654.9,3.76651]
[1739460381682,1.143572,2655.5,2655.1,3.76621]
[1739460381993,0.015,2655.4,2655.0,3.76646]
[1739460382355,0.015,2655.4,2655.0,3.76639]
[1739460382561,0.015,2655.4,2655.1,3.76632]
[1739460383172,0.015,2655.4,2654.9,3.76652]
[1739460383495,0.0075,2655.2,2654.9,3.76652]
[1739460383695,0.0075,2655.2,2655.1,3.76633]
[1739460383881,0.0075,2655.2,2655.0,7.53272]
[1739460384087,0.0075,2655.3,2655.0,3.76636]
[1739460384283,0.0075,2655.3,2654.8,3.7667]
[1739460384498,0.015,2655.3,2654.9,3.76661]
[1739460384803,1.02449978,2655.3,2654.8,3.7667]
[1739460385008,3.76628,2655.2,2654.7,3.76689]
[1739460385216,0.55,2654.8,2653.7,0.7726]
[1739460385419,0.0075,2654.6,2654.2,3.76751]
[1739460385622,3.77456,2654.6,2654.2,3.76751]
[1739460385902,0.0075,2654.6,2654.2,3.76751]
[1739460386199,0.5575,2654.5,2654.2,3.0]
[1739460386498,0.5575,2654.5,2654.1,3.76772]
[1739460386702,0.5575,2654.5,2653.9,3.76801]
[1739460387002,0.5575,2654.5,2653.7,0.7726]
[1739460387003,0.565,2654.1,2653.7,3.76818]
[1739460387158,0.565,2654.1,2653.9,3.76793]
[1739460387784,0.565,2654.1,2653.7,3.76821]
[1739460387998,0.565,2654.1,2653.8,3.7681]
[1739460388203,0.565,2654.1,2653.9,3.7679]
[1739460388355,0.565,2654.1,2653.7,3.76822]
[1739460388561,0.565,2654.1,2653.9,3.76795]
[1739460388957,0.565,2654.1,2653.7,3.76823]
[1739460389167,0.565,2654.1,2654.0,3.76789]
[1739460389456,0.015,2654.1,2654.0,3.76789]
[1739460389662,0.7537,2654.5,2654.1,3.76766]
[1739460389897,0.015,2654.4,2654.0,3.76782]
[1739460390098,0.565,2654.4,2654.0,3.76782]
[1739460390303,4.33233,2654.4,2653.5,3.76854]
[1739460390507,4.33233,2654.4,2653.9,3.76803]
[1739460390746,4.276083,2654.3,2653.8,3.76814]
[1739460390877,0.0075,2654.1,2653.8,3.76814]
[1739460391204,0.767,2655.2,2654.7,3.76681]
[1739460391386,3.76648,2655.0,2654.5,3.76709]
[1739460391571,0.015,2654.9,2654.5,3.7671]
[1739460391770,0.393148,2654.9,2654.5,3.7671]
[1739460391967,4.159798,2654.9,2654.3,3.76735]
[1739460392171,0.55,2654.8,2654.4,3.76725]
[1739460392372,0.55,2654.8,2654.3,3.76735]
[1739460392373,0.565,2654.5,2653.4,0.8215]
[1739460392594,3.78276,2654.1,2653.5,3.7686]
[1739460392811,0.015,2654.0,2653.5,3.76853]
[1739460393005,0.336,2654.3,2654.2,3.76761]
[1739460393395,1.135248,2654.9,2654.6,3.76693]
[1739460393593,0.7571,2654.9,2654.2,3.0]
[1739460393777,0.015,2654.8,2654.7,3.7669]
[1739460393985,0.015,2654.8,2654.6,3.76695]
[1739460394218,0.015,2654.8,2654.2,3.0]
[1739460394372,0.015,2654.8,2654.7,3.7669]
[1739460395479,0.015,2654.8,2654.6,3.76696]
[1739460395680,0.015,2654.8,2654.4,3.76725]
[1739460396201,0.824814,2654.8,2654.4,3.0]
[1739460396404,0.0075,2654.6,2654.2,3.76752]
[1739460396578,0.0075,2654.6,2654.2,7.53505]
[1739460396579,0.015,2654.6,2654.2,7.53505]
[1739460396921,0.015,2654.6,2654.5,3.76718]
[1739460397219,4.53325,2655.2,2654.5,3.76718]
[1739460397515,1.554325,2655.2,2654.7,3.76681]
[1739460397699,0.015,2655.1,2654.7,3.76681]
[1739460397886,0.565,2655.1,2654.4,3.76732]
[1739460398224,0.015,2655.1,2655.0,3.76647]
[1739460399409,0.015,2655.1,2654.9,3.76654]
[1739460399715,0.015,2655.1,2654.9,3.76655]
[1739460399904,0.015,2655.1,2655.0,3.76647]
[1739460400687,0.0075,2655.1,2655.0,3.76647]
[1739460400882,0.0075,2655.2,2655.0,3.76647]
[1739460401071,1.1,2655.5,2654.8,3.0]
[1739460401072,0.767,2655.5,2654.8,3.0]
[1739460401277,3.031,2655.5,2654.9,6.76653]
[1739460401696,2.829,2655.1,2654.3,3.76739]
[1739460401848,0.015,2654.8,2654.3,3.76739]
[1739460402004,3.78176,2654.8,2654.4,3.76732]
[1739460402371,3.78176,2654.8,2654.3,7.53478]
[1739460402569,0.751146,2654.8,2654.1,6.76772]
[1739460402846,0.7657,2655.0,2654.6,3.76695]
[1739460403141,0.015,2654.9,2654.6,3.76695]
[1739460403445,0.015,2654.9,2654.7,3.7669]
[1739460403808,0.015,2654.9,2654.6,3.76699]
[1739460404010,0.015,2654.9,2654.5,3.76704]
[1739460404234,0.015,2654.9,2654.5,7.53413]
[1739460404441,0.015,2654.9,2654.5,3.76704]
[1739460404645,5.163052,2654.9,2654.4,3.76731]
[1739460404944,1.396362,2654.9,2654.6,3.76696]
[1739460405103,0.015,2654.9,2654.8,3.76676]
[1739460405306,0.015,2654.9,2654.4,3.76722]
[1739460405536,0.015,2654.9,2654.6,3.76697]
[1739460405764,0.7531,2655.3,2654.9,3.76651]
[1739460405975,0.7531,2655.3,2655.0,3.76645]
[1739460406177,4.971052,2655.3,2654.8,3.76666]
[1739460406351,1.205002,2655.3,2654.9,3.7666]
[1739460406551,1.205002,2655.3,2654.9,7.53311]
[1739460406853,0.015,2655.2,2654.9,3.76651]
[1739460407268,0.015,2655.2,2655.1,3.76633]
[1739460407449,0.015,2655.2,2654.9,3.7665]
[1739460407655,0.015,2655.2,2655.0,3.76645]
[1739460407886,0.015,2655.2,2654.9,3.7665]
[1739460408257,0.468407,2655.2,2654.9,3.76651]
[1739460409185,0.015,2655.2,2655.0,3.76636]
[1739460409345,1.6367,2655.6,2655.1,3.76633]
[1739460409543,1.6367,2655.6,2655.2,3.76616]
[1739460409979,0.015,2655.5,2655.2,3.76616]
[1739460410683,0.015,2655.5,2655.3,3.76604]
[1739460410980,0.015,2655.5,2655.1,3.7663]
[1739460411359,3.78077,2655.5,2655.1,3.76627]
[1739460411545,4.643972,2655.5,2655.0,3.0]
[1739460411746,4.644032,2655.5,2655.0,6.76647]
[1739460412148,0.015,2655.3,2654.7,7.5336]
[1739460412346,0.0075,2654.9,2654.5,3.76712]
[1739460412551,0.015,2654.7,2654.3,3.76738]
[1739460412868,0.015,2654.7,2654.3,7.53474]
[1739460413082,0.015,2654.7,2654.4,3.76732]
[1739460413257,0.015,2654.7,2654.5,3.76716]
[1739460413457,0.015,2654.7,2654.5,7.53428]
[1739460413689,0.015,2654.7,2654.5,3.76712]
[1739460413992,0.015,2654.7,2654.5,7.53423]
[1739460414193,0.015,2654.7,2653.9,3.7538]
[1739460414352,0.015,2654.7,2654.0,0.87639216]
[1739460414560,0.565,2654.7,2654.2,3.0]
[1739460414756,0.015,2654.5,2654.2,3.0]
[1739460414976,3.76704,2654.6,2654.3,3.76733]
[1739460414977,0.015,2654.6,2654.3,3.76733]
[1739460415567,0.015,2654.6,2654.4,3.76722]
[1739460415769,0.015,2654.6,2654.3,3.76733]
[1739460415970,0.015,2654.6,2654.4,3.76732]
[1739460416384,0.015,2654.6,2654.1,3.76761]
[1739460416585,0.015,2654.6,2654.0,3.76788]
[1739460416754,0.0075,2654.4,2654.0,3.76788]
[1739460416959,0.0075,2654.4,2654.2,3.0]
[1739460417362,0.0075,2654.6,2654.1,3.76763]
[1739460417363,0.015,2654.6,2654.1,3.0]
[1739460417561,0.015,2654.6,2654.2,3.76751]
[1739460417959,0.015,2654.6,2654.2,3.7675]
[1739460418168,0.015,2654.6,2654.1,3.76772]
[1739460418479,0.0075,2654.2,2653.8,3.76809]
[1739460419009,0.0075,2654.2,2653.6,3.76838]
[1739460419180,0.0075,2654.2,2653.4,3.7542]
[1739460419362,0.015,2654.2,2653.8,3.7681]
[1739460419568,0.015,2654.2,2653.6,3.76835]
[1739460419569,3.78262,2654.2,2653.7,3.0]
[1739460419769,3.031,2654.5,2654.0,3.76781]
[1739460419970,3.031,2654.5,2654.1,3.76768]
[1739460420167,3.031,2654.5,2654.0,3.76781]
[1739460420168,0.015,2654.4,2654.0,3.76781]
[1739460420404,0.015,2654.4,2654.1,3.76766]
[1739460420810,0.015,2654.4,2653.5,7.25478862]
[1739460420811,2.279,2654.1,2653.5,3.76852]
[1739460420964,0.565,2653.9,2653.5,3.76852]
[1739460421168,0.565,2653.9,2653.7,3.76831]
[1739460421369,0.015,2653.9,2653.5,3.76852]
[1739460421613,0.015,2653.9,2653.6,3.76839]
[1739460421915,0.015,2653.9,2653.1,3.1451]
[1739460421916,0.565,2653.9,2653.1,3.1451]
[1739460422208,0.015,2653.8,2653.5,3.76859]
[1739460422393,0.015,2653.8,2653.6,3.76843]
[1739460422581,4.53453,2654.3,2653.5,3.76859]
[1739460422762,4.53453,2654.3,2653.7,3.76818]
[1739460422763,0.453453,2654.2,2653.7,3.76818]
[1739460422969,0.326,2654.3,2653.7,3.76832]
[1739460423171,0.326,2654.3,2653.5,4.25478862]
[1739460423172,0.326,2654.3,2653.9,3.76803]
[1739460423380,0.015,2654.2,2653.8,3.76811]
[1739460423609,0.0075,2654.0,2653.6,3.76834]
[1739460423807,0.0075,2653.9,2653.5,3.76856]
[1739460424108,0.0075,2653.9,2653.4,3.76874]
[1739460424313,0.0075,2653.9,2653.1,0.1451]
[1739460424314,3.76844,2653.7,2653.1,0.1451]
[1739460424509,0.7669,2653.5,2653.1,0.1451]